[Event "Titled Tuesday Blitz May 16 Early 2023"]
[White "SashaKuzhilniy"]
[Black "Molina, Roberto Junio Brito"]
[BlackFideId "2109450"]
[WhiteElo "2591"]
[BlackElo "2376"]
[Result "1-0"]
[Round "09"]
[TimeControl "180+2"]
[Date "2023.05.16"]
[WhiteClock "0:00:02"]
[BlackClock "0:00:00"]

1. b3 {[%clk 0:03:00]}  d5 {[%clk 0:02:59]} 2. Bb2 {[%clk 0:03:01]}  Bg4 {[%clk 0:02:58]} 3. d3 {[%clk 0:02:59]}  e6 {[%clk 0:02:55]} 4. Nd2 {[%clk 0:02:59]}  Bh5 {[%clk 0:02:53]} 5. Ngf3 {[%clk 0:02:59]}  Nd7 {[%clk 0:02:52]} 6. g3 {[%clk 0:02:58]}  Ngf6 {[%clk 0:02:51]} 7. Bg2 {[%clk 0:02:58]}  Bd6 {[%clk 0:02:49]} 8. O-O {[%clk 0:02:58]}  Qe7 {[%clk 0:02:47]} 9. a4 {[%clk 0:02:47]}  c6 {[%clk 0:02:43]} 10. e4 {[%clk 0:02:47]}  O-O {[%clk 0:02:34]} 11. Qe2 {[%clk 0:02:44]}  e5 {[%clk 0:02:32]} 12. h3 {[%clk 0:02:37]}  Rfe8 {[%clk 0:02:30]} 13. Rfe1 {[%clk 0:02:28]}  d4 {[%clk 0:02:28]} 14. g4 {[%clk 0:02:15]}  Bg6 {[%clk 0:02:28]} 15. Nh4 {[%clk 0:02:14]}  Bb4 {[%clk 0:02:26]} 16. Nf5 {[%clk 0:02:13]}  Qc5 {[%clk 0:02:16]} 17. Rec1 {[%clk 0:02:07]}  Nf8 {[%clk 0:02:12]} 18. Nc4 {[%clk 0:01:50]}  Ne6 {[%clk 0:02:04]} 19. Qf3 {[%clk 0:01:31]}  Rad8 {[%clk 0:01:58]} 20. Qg3 {[%clk 0:01:27]}  Nf4 {[%clk 0:01:57]} 21. Bf1 {[%clk 0:01:25]}  Bxf5 {[%clk 0:01:54]} 22. gxf5 {[%clk 0:01:11]}  b5 {[%clk 0:01:54]} 23. axb5 {[%clk 0:01:06]}  cxb5 {[%clk 0:01:55]} 24. Na3 {[%clk 0:00:59]}  Bc3 {[%clk 0:01:48]} 25. Bxc3 {[%clk 0:00:50]}  dxc3 {[%clk 0:01:49]} 26. Qe3 {[%clk 0:00:45]}  Rd4 {[%clk 0:01:45]} 27. b4 {[%clk 0:00:40]}  Qb6 {[%clk 0:01:41]} 28. Nb1 {[%clk 0:00:38]}  Rc8 {[%clk 0:01:41]} 29. Ra3 {[%clk 0:00:37]}  Rxb4 {[%clk 0:01:29]} 30. Qxb6 {[%clk 0:00:35]}  axb6 {[%clk 0:01:30]} 31. Nxc3 {[%clk 0:00:35]}  g6 {[%clk 0:01:18]} 32. fxg6 {[%clk 0:00:30]}  hxg6 {[%clk 0:01:18]} 33. Ne2 {[%clk 0:00:30]}  N6h5 {[%clk 0:01:13]} 34. Ng3 {[%clk 0:00:25]}  Rb2 {[%clk 0:01:10]} 35. Ra6 {[%clk 0:00:19]}  b4 {[%clk 0:01:03]} 36. Rxb6 {[%clk 0:00:18]}  b3 {[%clk 0:01:04]} 37. c3 {[%clk 0:00:15]}  Ra8 {[%clk 0:00:58]} 38. d4 {[%clk 0:00:13]}  Raa2 {[%clk 0:00:53]} 39. Nh1 {[%clk 0:00:13]}  Nf6 {[%clk 0:00:45]} 40. Rxf6 {[%clk 0:00:11]}  Ne6 {[%clk 0:00:31]} 41. dxe5 {[%clk 0:00:07]}  Kg7 {[%clk 0:00:29]} 42. Bc4 {[%clk 0:00:07]}  Ng5 {[%clk 0:00:29]} 43. Rb6 {[%clk 0:00:03]}  Nxh3+ {[%clk 0:00:26]} 44. Kf1 {[%clk 0:00:03]}  Nxf2 {[%clk 0:00:23]} 45. Nxf2 {[%clk 0:00:04]}  Rxf2+ {[%clk 0:00:22]} 46. Ke1 {[%clk 0:00:04]}  Rh2 {[%clk 0:00:19]} 47. Rxb3 {[%clk 0:00:04]}  Rh4 {[%clk 0:00:10]} 48. Bf1 {[%clk 0:00:03]}  Rxe4+ {[%clk 0:00:10]} 49. Kd1 {[%clk 0:00:04]}  Rf2 {[%clk 0:00:10]} 50. Bd3 {[%clk 0:00:03]}  Rxe5 {[%clk 0:00:10]} 51. c4 {[%clk 0:00:03]}  Rg5 {[%clk 0:00:03]} 52. Ke1 {[%clk 0:00:03]}  Rh2 {[%clk 0:00:02]} 53. Bf1 {[%clk 0:00:02]}  Re5+ {[%clk 0:00:01]} 54. Kd1 {[%clk 0:00:02]}  Rf2 {[%clk 0:00:01]} 55. Bd3 {[%clk 0:00:01]}  Rh5 {[%clk 0:00:01]} 56. Ke1 {[%clk 0:00:01]}  Rg2 {[%clk 0:00:00]} 57. Bf1 {[%clk 0:00:02]} 1-0


[Site "https://www.chess.com"]

[Event "Titled Tuesday Blitz May 16 Early 2023"]
[White "Bodnaruk, Anastasia"]
[Black "Rozman, Levy"]
[WhiteFideId "4181751"]
[BlackFideId "2039877"]
[WhiteElo "2304"]
[BlackElo "2376"]
[Result "0-1"]
[Round "09"]
[TimeControl "180+2"]
[Date "2023.05.16"]
[WhiteClock "0:00:00"]
[BlackClock "0:00:37"]

1. e4 {[%clk 0:03:00]}  c6 {[%clk 0:02:59]} 2. d4 {[%clk 0:03:00]}  d5 {[%clk 0:02:59]} 3. e5 {[%clk 0:03:01]}  c5 {[%clk 0:03:00]} 4. c3 {[%clk 0:02:58]}  Nc6 {[%clk 0:03:00]} 5. Be2 {[%clk 0:02:59]}  Nh6 {[%clk 0:02:57]} 6. Nf3 {[%clk 0:02:46]}  Bg4 {[%clk 0:02:54]} 7. dxc5 {[%clk 0:02:39]}  Bxf3 {[%clk 0:02:53]} 8. Bxf3 {[%clk 0:02:39]}  e6 {[%clk 0:02:54]} 9. b4 {[%clk 0:02:21]}  Nxe5 {[%clk 0:02:44]} 10. Be2 {[%clk 0:02:21]}  Be7 {[%clk 0:02:41]} 11. O-O {[%clk 0:02:18]}  Nf5 {[%clk 0:02:39]} 12. Bb2 {[%clk 0:01:57]}  O-O {[%clk 0:02:38]} 13. Nd2 {[%clk 0:01:54]}  b6 {[%clk 0:02:34]} 14. cxb6 {[%clk 0:01:53]}  Qxb6 {[%clk 0:02:33]} 15. Nb3 {[%clk 0:01:50]}  Rfc8 {[%clk 0:02:31]} 16. Kh1 {[%clk 0:01:38]}  Nc4 {[%clk 0:02:27]} 17. Bxc4 {[%clk 0:01:35]}  Rxc4 {[%clk 0:02:27]} 18. Na5 {[%clk 0:01:26]}  Rc7 {[%clk 0:02:16]} 19. Qd3 {[%clk 0:01:25]}  Rb8 {[%clk 0:02:11]} 20. Rac1 {[%clk 0:01:13]}  Bf6 {[%clk 0:02:08]} 21. Nb3 {[%clk 0:01:10]}  Nd6 {[%clk 0:02:06]} 22. Nc5 {[%clk 0:01:06]}  Nc4 {[%clk 0:02:06]} 23. Ba1 {[%clk 0:01:05]}  a5 {[%clk 0:02:03]} 24. Rb1 {[%clk 0:01:02]}  Qc6 {[%clk 0:01:59]} 25. Rb3 {[%clk 0:00:44]}  h6 {[%clk 0:01:54]} 26. Kg1 {[%clk 0:00:38]}  Be7 {[%clk 0:01:49]} 27. Qd4 {[%clk 0:00:18]}  a4 {[%clk 0:01:44]} 28. Rbb1 {[%clk 0:00:17]}  Bxc5 {[%clk 0:01:37]} 29. bxc5 {[%clk 0:00:17]}  Rb5 {[%clk 0:01:36]} 30. Rb4 {[%clk 0:00:16]}  Rxc5 {[%clk 0:01:26]} 31. Rfb1 {[%clk 0:00:12]}  Rc8 {[%clk 0:01:25]} 32. Rb8 {[%clk 0:00:11]}  e5 {[%clk 0:01:19]} 33. Qg4 {[%clk 0:00:10]}  Qe6 {[%clk 0:01:15]} 34. Qh4 {[%clk 0:00:09]}  Rxb8 {[%clk 0:01:10]} 35. Rxb8+ {[%clk 0:00:09]}  Rc8 {[%clk 0:01:10]} 36. Rb7 {[%clk 0:00:09]}  Qf5 {[%clk 0:01:09]} 37. h3 {[%clk 0:00:06]}  a3 {[%clk 0:01:05]} 38. Qe7 {[%clk 0:00:06]}  Kh7 {[%clk 0:01:02]} 39. h4 {[%clk 0:00:02]}  Rc6 {[%clk 0:01:00]} 40. Rb8 {[%clk 0:00:02]}  h5 {[%clk 0:00:47]} 41. Qe8 {[%clk 0:00:02]}  Rb6 {[%clk 0:00:41]} 42. Qh8+ {[%clk 0:00:02]}  Kg6 {[%clk 0:00:41]} 43. Rxb6+ {[%clk 0:00:01]}  Nxb6 {[%clk 0:00:42]} 44. c4 {[%clk 0:00:01]}  Nxc4 {[%clk 0:00:38]} 45. Kh2 {[%clk 0:00:00]}  Qf4+ {[%clk 0:00:37]} 0-1


[Site "https://www.chess.com"]

[Event "Titled Tuesday Blitz May 16 Early 2023"]
[White "Bryakin, Mikhail"]
[Black "Al-Tarboush, Ward"]
[WhiteFideId "4165314"]
[BlackFideId "7601450"]
[WhiteElo "2467"]
[BlackElo "2265"]
[Result "0-1"]
[Round "09"]
[TimeControl "180+2"]
[Date "2023.05.16"]
[WhiteClock "0:00:04"]
[BlackClock "0:01:06"]

1. e4 {[%clk 0:03:00]}  e6 {[%clk 0:02:59]} 2. d4 {[%clk 0:03:00]}  d5 {[%clk 0:02:59]} 3. e5 {[%clk 0:02:55]}  c5 {[%clk 0:02:59]} 4. c3 {[%clk 0:02:55]}  Nc6 {[%clk 0:02:59]} 5. Nf3 {[%clk 0:02:55]}  Qb6 {[%clk 0:03:00]} 6. Be2 {[%clk 0:02:54]}  Nh6 {[%clk 0:02:49]} 7. O-O {[%clk 0:02:33]}  cxd4 {[%clk 0:02:48]} 8. cxd4 {[%clk 0:02:31]}  Nf5 {[%clk 0:02:48]} 9. Nc3 {[%clk 0:01:56]}  Ncxd4 {[%clk 0:02:43]} 10. Be3 {[%clk 0:01:52]}  Nxf3+ {[%clk 0:02:38]} 11. Bxf3 {[%clk 0:01:44]}  d4 {[%clk 0:02:39]} 12. Na4 {[%clk 0:01:43]}  Qd8 {[%clk 0:02:23]} 13. Bf4 {[%clk 0:00:57]}  Be7 {[%clk 0:02:22]} 14. Rc1 {[%clk 0:00:45]}  O-O {[%clk 0:02:18]} 15. Qb3 {[%clk 0:00:42]}  Rb8 {[%clk 0:02:17]} 16. Rfd1 {[%clk 0:00:41]}  Bd7 {[%clk 0:02:07]} 17. Nc5 {[%clk 0:00:37]}  Bxc5 {[%clk 0:02:08]} 18. Rxc5 {[%clk 0:00:38]}  Bc6 {[%clk 0:02:09]} 19. Bxc6 {[%clk 0:00:37]}  bxc6 {[%clk 0:02:10]} 20. Qc2 {[%clk 0:00:36]}  Qb6 {[%clk 0:02:05]} 21. b3 {[%clk 0:00:34]}  Rfd8 {[%clk 0:01:48]} 22. Rxc6 {[%clk 0:00:24]}  d3 {[%clk 0:01:48]} 23. Qc1 {[%clk 0:00:17]}  Qb5 {[%clk 0:01:22]} 24. Rd6 {[%clk 0:00:16]}  Nxd6 {[%clk 0:01:19]} 25. exd6 {[%clk 0:00:17]}  e5 {[%clk 0:01:16]} 26. Be3 {[%clk 0:00:15]}  Rxd6 {[%clk 0:01:15]} 27. Qc7 {[%clk 0:00:13]}  Rbd8 {[%clk 0:01:13]} 28. Qxa7 {[%clk 0:00:12]}  Qa6 {[%clk 0:01:12]} 29. Qxa6 {[%clk 0:00:11]}  Rxa6 {[%clk 0:01:13]} 30. a4 {[%clk 0:00:11]}  e4 {[%clk 0:01:13]} 31. f3 {[%clk 0:00:12]}  f5 {[%clk 0:01:13]} 32. f4 {[%clk 0:00:11]}  Rb8 {[%clk 0:01:13]} 33. Rb1 {[%clk 0:00:11]}  Rxa4 {[%clk 0:01:13]} 34. Rc1 {[%clk 0:00:09]}  Rxb3 {[%clk 0:01:10]} 35. Kf2 {[%clk 0:00:07]}  Ra2+ {[%clk 0:01:09]} 36. Kg3 {[%clk 0:00:04]}  d2 {[%clk 0:01:06]} 0-1


[Site "https://www.chess.com"]

[Event "Titled Tuesday Blitz May 16 Early 2023"]
[White "iHateNAJDORF"]
[Black "Starozhilov, Leonid"]
[BlackFideId "14106752"]
[WhiteElo "2552"]
[BlackElo "2352"]
[Result "1-0"]
[Round "09"]
[TimeControl "180+2"]
[Date "2023.05.16"]
[WhiteClock "0:00:21"]
[BlackClock "0:00:00"]

1. c4 {[%clk 0:03:00]}  Nf6 {[%clk 0:02:59]} 2. Nc3 {[%clk 0:03:01]}  g6 {[%clk 0:02:59]} 3. e4 {[%clk 0:03:01]}  d6 {[%clk 0:03:00]} 4. d4 {[%clk 0:03:02]}  Bg7 {[%clk 0:03:01]} 5. h3 {[%clk 0:03:01]}  e5 {[%clk 0:03:00]} 6. d5 {[%clk 0:02:59]}  a5 {[%clk 0:02:59]} 7. Be3 {[%clk 0:02:53]}  Na6 {[%clk 0:02:58]} 8. Nf3 {[%clk 0:02:43]}  Nh5 {[%clk 0:02:54]} 9. Nd2 {[%clk 0:02:36]}  O-O {[%clk 0:02:52]} 10. Be2 {[%clk 0:02:36]}  Nf4 {[%clk 0:02:49]} 11. Bf3 {[%clk 0:02:31]}  Nd3+ {[%clk 0:02:46]} 12. Kf1 {[%clk 0:02:20]}  f5 {[%clk 0:02:42]} 13. Qb1 {[%clk 0:01:54]}  Nxb2 {[%clk 0:02:22]} 14. exf5 {[%clk 0:01:51]}  gxf5 {[%clk 0:02:17]} 15. Qxb2 {[%clk 0:01:48]}  f4 {[%clk 0:02:16]} 16. Nde4 {[%clk 0:01:44]}  fxe3 {[%clk 0:02:14]} 17. fxe3 {[%clk 0:01:45]}  Bf5 {[%clk 0:02:07]} 18. Kg1 {[%clk 0:01:41]}  Bh6 {[%clk 0:01:58]} 19. Qe2 {[%clk 0:01:37]}  Kh8 {[%clk 0:01:57]} 20. Kh2 {[%clk 0:01:32]}  Qh4 {[%clk 0:01:49]} 21. g3 {[%clk 0:01:29]}  Qe7 {[%clk 0:01:34]} 22. Raf1 {[%clk 0:01:25]}  Rg8 {[%clk 0:01:17]} 23. Bg4 {[%clk 0:01:22]}  Bg6 {[%clk 0:01:09]} 24. Bf5 {[%clk 0:01:19]}  Raf8 {[%clk 0:00:47]} 25. Bxg6 {[%clk 0:01:17]}  hxg6 {[%clk 0:00:47]} 26. Kg2 {[%clk 0:01:11]}  Nb8 {[%clk 0:00:44]} 27. h4 {[%clk 0:01:03]}  Nd7 {[%clk 0:00:36]} 28. Rb1 {[%clk 0:00:47]}  b6 {[%clk 0:00:34]} 29. g4 {[%clk 0:00:41]}  Rf7 {[%clk 0:00:17]} 30. g5 {[%clk 0:00:38]}  Bf8 {[%clk 0:00:17]} 31. h5 {[%clk 0:00:36]}  gxh5 {[%clk 0:00:13]} 32. Rxh5+ {[%clk 0:00:30]}  Rh7 {[%clk 0:00:13]} 33. Rbh1 {[%clk 0:00:31]}  Rg7 {[%clk 0:00:13]} 34. Qg4 {[%clk 0:00:23]}  Kg8 {[%clk 0:00:14]} 35. Rxh7 {[%clk 0:00:20]}  Rxh7 {[%clk 0:00:00]} 36. Nf6+ {[%clk 0:00:21]} 1-0


[Site "https://www.chess.com"]

[Event "Titled Tuesday Blitz May 16 Early 2023"]
[White "Shuvalov, Evgenij"]
[Black "Mendez Fortes, Eduardo Jesus"]
[WhiteFideId "4187237"]
[BlackFideId "3502376"]
[WhiteElo "2080"]
[BlackElo "2307"]
[Result "0-1"]
[Round "09"]
[TimeControl "180+2"]
[Date "2023.05.16"]
[WhiteClock "0:00:00"]
[BlackClock "0:00:19"]

1. d4 {[%clk 0:03:00]}  Nf6 {[%clk 0:02:59]} 2. c4 {[%clk 0:03:00]}  e6 {[%clk 0:02:59]} 3. Nc3 {[%clk 0:03:00]}  Bb4 {[%clk 0:03:00]} 4. f3 {[%clk 0:03:00]}  c5 {[%clk 0:02:59]} 5. d5 {[%clk 0:03:00]}  O-O {[%clk 0:02:54]} 6. e4 {[%clk 0:03:00]}  d6 {[%clk 0:02:54]} 7. Ne2 {[%clk 0:02:59]}  b5 {[%clk 0:02:47]} 8. Nf4 {[%clk 0:02:58]}  e5 {[%clk 0:02:46]} 9. Ne2 {[%clk 0:02:58]}  bxc4 {[%clk 0:02:43]} 10. Ng3 {[%clk 0:02:58]}  Kh8 {[%clk 0:02:38]} 11. Bxc4 {[%clk 0:02:53]}  Ng8 {[%clk 0:02:38]} 12. O-O {[%clk 0:02:51]}  Ne7 {[%clk 0:02:38]} 13. f4 {[%clk 0:02:41]}  exf4 {[%clk 0:02:36]} 14. Bxf4 {[%clk 0:02:40]}  Ng6 {[%clk 0:02:34]} 15. Qh5 {[%clk 0:02:32]}  Qe7 {[%clk 0:02:01]} 16. Rae1 {[%clk 0:02:21]}  Bxc3 {[%clk 0:01:47]} 17. bxc3 {[%clk 0:02:20]}  f6 {[%clk 0:01:43]} 18. Nf5 {[%clk 0:02:12]}  Bxf5 {[%clk 0:01:41]} 19. exf5 {[%clk 0:02:12]}  Ne5 {[%clk 0:01:41]} 20. Bxe5 {[%clk 0:02:08]}  dxe5 {[%clk 0:01:30]} 21. d6 {[%clk 0:01:11]}  Qxd6 {[%clk 0:01:29]} 22. Rd1 {[%clk 0:01:11]}  Qc7 {[%clk 0:01:24]} 23. Rd3 {[%clk 0:01:07]}  h6 {[%clk 0:01:19]} 24. Rfd1 {[%clk 0:00:58]}  e4 {[%clk 0:01:12]} 25. Rd6 {[%clk 0:00:51]}  Nc6 {[%clk 0:00:55]} 26. Rd7 {[%clk 0:00:38]}  Qf4 {[%clk 0:00:53]} 27. Qg6 {[%clk 0:00:11]}  Qg5 {[%clk 0:00:53]} 28. Bd5 {[%clk 0:00:05]}  Ne5 {[%clk 0:00:32]} 29. Qxg5 {[%clk 0:00:04]}  fxg5 {[%clk 0:00:21]} 30. Bxa8 {[%clk 0:00:03]}  Nxd7 {[%clk 0:00:21]} 31. Bxe4 {[%clk 0:00:04]}  Nb6 {[%clk 0:00:18]} 32. Rd6 {[%clk 0:00:02]}  Re8 {[%clk 0:00:19]} 33. Re6 {[%clk 0:00:01]}  Rxe6 {[%clk 0:00:18]} 34. fxe6 {[%clk 0:00:02]}  Kg8 {[%clk 0:00:19]} 35. Bg6 {[%clk 0:00:02]}  Kf8 {[%clk 0:00:19]} 36. Kf2 {[%clk 0:00:03]}  Ke7 {[%clk 0:00:19]} 37. Bf5 {[%clk 0:00:02]}  Kf6 {[%clk 0:00:19]} 38. g4 {[%clk 0:00:00]}  Nd5 {[%clk 0:00:19]} 0-1


[Site "https://www.chess.com"]

[Event "Titled Tuesday Blitz May 16 Early 2023"]
[White "Jeet, Jain"]
[Black "Santos Flores, Alberto"]
[WhiteFideId "5073022"]
[BlackFideId "3601234"]
[WhiteElo "2067"]
[BlackElo "2235"]
[Result "1/2-1/2"]
[Round "09"]
[TimeControl "180+2"]
[Date "2023.05.16"]
[WhiteClock "0:00:19"]
[BlackClock "0:00:11"]

1. d4 {[%clk 0:02:59]}  d5 {[%clk 0:03:00]} 2. Nf3 {[%clk 0:02:58]}  Nf6 {[%clk 0:02:59]} 3. e3 {[%clk 0:02:59]}  c6 {[%clk 0:02:50]} 4. Be2 {[%clk 0:02:58]}  Bf5 {[%clk 0:02:50]} 5. O-O {[%clk 0:02:58]}  h6 {[%clk 0:02:50]} 6. b3 {[%clk 0:02:58]}  e6 {[%clk 0:02:50]} 7. Bb2 {[%clk 0:02:59]}  Nbd7 {[%clk 0:02:50]} 8. c4 {[%clk 0:03:00]}  Be7 {[%clk 0:02:50]} 9. Nbd2 {[%clk 0:03:00]}  O-O {[%clk 0:02:50]} 10. Ne5 {[%clk 0:03:01]}  Nxe5 {[%clk 0:02:50]} 11. dxe5 {[%clk 0:03:02]}  Ne4 {[%clk 0:02:50]} 12. Nf3 {[%clk 0:02:58]}  Bg6 {[%clk 0:02:44]} 13. Nd4 {[%clk 0:02:53]}  c5 {[%clk 0:02:30]} 14. Nb5 {[%clk 0:02:45]}  a6 {[%clk 0:02:29]} 15. Nc3 {[%clk 0:02:41]}  Nxc3 {[%clk 0:02:28]} 16. Bxc3 {[%clk 0:02:42]}  dxc4 {[%clk 0:02:27]} 17. bxc4 {[%clk 0:02:40]}  Qxd1 {[%clk 0:02:24]} 18. Rfxd1 {[%clk 0:02:39]}  Rfd8 {[%clk 0:02:24]} 19. f3 {[%clk 0:02:39]}  Rxd1+ {[%clk 0:02:21]} 20. Rxd1 {[%clk 0:02:38]}  Rd8 {[%clk 0:02:22]} 21. e4 {[%clk 0:02:29]}  Rxd1+ {[%clk 0:02:21]} 22. Bxd1 {[%clk 0:02:30]}  f6 {[%clk 0:02:11]} 23. Ba4 {[%clk 0:02:27]}  Kf7 {[%clk 0:01:45]} 24. Kf2 {[%clk 0:02:26]}  f5 {[%clk 0:01:39]} 25. exf5 {[%clk 0:02:23]}  Bxf5 {[%clk 0:01:39]} 26. Ke3 {[%clk 0:02:21]}  Bd8 {[%clk 0:01:32]} 27. Bb2 {[%clk 0:01:57]}  Ke7 {[%clk 0:01:27]} 28. Ba3 {[%clk 0:01:48]}  Bb6 {[%clk 0:01:21]} 29. g4 {[%clk 0:01:43]}  Bg6 {[%clk 0:01:21]} 30. f4 {[%clk 0:01:36]}  Ba7 {[%clk 0:01:13]} 31. h4 {[%clk 0:01:31]}  Bb1 {[%clk 0:01:13]} 32. Bb3 {[%clk 0:01:28]}  b5 {[%clk 0:01:13]} 33. Bc1 {[%clk 0:01:26]}  Bg6 {[%clk 0:01:05]} 34. h5 {[%clk 0:01:25]}  Be8 {[%clk 0:01:04]} 35. g5 {[%clk 0:01:21]}  Bxh5 {[%clk 0:01:02]} 36. gxh6 {[%clk 0:01:16]}  gxh6 {[%clk 0:01:03]} 37. Kf2 {[%clk 0:01:16]}  Bg6 {[%clk 0:01:02]} 38. a4 {[%clk 0:01:05]}  Bd3 {[%clk 0:00:53]} 39. axb5 {[%clk 0:01:03]}  axb5 {[%clk 0:00:53]} 40. Ke3 {[%clk 0:00:59]}  Bxc4 {[%clk 0:00:51]} 41. Bxc4 {[%clk 0:00:57]}  bxc4 {[%clk 0:00:52]} 42. Kd2 {[%clk 0:00:56]}  Kf7 {[%clk 0:00:50]} 43. Kc3 {[%clk 0:00:54]}  Kg6 {[%clk 0:00:50]} 44. f5+ {[%clk 0:00:51]}  Kxf5 {[%clk 0:00:50]} 45. Bxh6 {[%clk 0:00:47]}  Kxe5 {[%clk 0:00:49]} 46. Kxc4 {[%clk 0:00:48]}  Kd6 {[%clk 0:00:48]} 47. Bf8+ {[%clk 0:00:45]}  Kc6 {[%clk 0:00:48]} 48. Be7 {[%clk 0:00:44]}  e5 {[%clk 0:00:44]} 49. Bf8 {[%clk 0:00:44]}  e4 {[%clk 0:00:43]} 50. Be7 {[%clk 0:00:42]}  Kd7 {[%clk 0:00:39]} 51. Bg5 {[%clk 0:00:28]}  Ke6 {[%clk 0:00:39]} 52. Be3 {[%clk 0:00:25]}  Ke5 {[%clk 0:00:38]} 53. Kb5 {[%clk 0:00:22]}  Kd5 {[%clk 0:00:36]} 54. Bf2 {[%clk 0:00:20]}  Ke5 {[%clk 0:00:23]} 55. Be3 {[%clk 0:00:21]}  Kf5 {[%clk 0:00:23]} 56. Ka6 {[%clk 0:00:20]}  Bb8 {[%clk 0:00:21]} 57. Bxc5 {[%clk 0:00:20]}  Kf4 {[%clk 0:00:18]} 58. Kb5 {[%clk 0:00:19]}  Kf3 {[%clk 0:00:18]} 59. Kc4 {[%clk 0:00:19]}  Be5 {[%clk 0:00:18]} 60. Bb6 {[%clk 0:00:19]}  Ke2 {[%clk 0:00:16]} 61. Kd5 {[%clk 0:00:19]}  e3 {[%clk 0:00:12]} 62. Kxe5 {[%clk 0:00:18]}  Kd3 {[%clk 0:00:11]} 63. Bxe3 {[%clk 0:00:19]} 1/2-1/2


[Site "https://www.chess.com"]

[Event "Titled Tuesday Blitz May 16 Early 2023"]
[White "Cezila Jr, Rubens"]
[Black "RobertDowneyJr0111"]
[WhiteFideId "2116723"]
[WhiteElo "2214"]
[BlackElo "2625"]
[Result "1-0"]
[Round "09"]
[TimeControl "180+2"]
[Date "2023.05.16"]
[WhiteClock "0:00:15"]
[BlackClock "0:00:04"]

1. c4 {[%clk 0:03:00]}  c6 {[%clk 0:03:00]} 2. Nc3 {[%clk 0:03:00]}  d5 {[%clk 0:02:58]} 3. e3 {[%clk 0:03:00]}  Nf6 {[%clk 0:02:58]} 4. Nf3 {[%clk 0:03:00]}  e6 {[%clk 0:02:58]} 5. b3 {[%clk 0:03:01]}  Nbd7 {[%clk 0:02:57]} 6. Bb2 {[%clk 0:03:01]}  Bd6 {[%clk 0:02:58]} 7. Rc1 {[%clk 0:02:59]}  Qe7 {[%clk 0:02:57]} 8. g3 {[%clk 0:02:57]}  O-O {[%clk 0:02:54]} 9. Bg2 {[%clk 0:02:57]}  dxc4 {[%clk 0:02:52]} 10. bxc4 {[%clk 0:02:56]}  e5 {[%clk 0:02:53]} 11. d3 {[%clk 0:02:51]}  Nc5 {[%clk 0:02:41]} 12. O-O {[%clk 0:02:41]}  Bf5 {[%clk 0:02:31]} 13. e4 {[%clk 0:02:40]}  Bg4 {[%clk 0:02:29]} 14. h3 {[%clk 0:02:39]}  Bxf3 {[%clk 0:02:29]} 15. Bxf3 {[%clk 0:02:40]}  Rad8 {[%clk 0:02:27]} 16. Rc2 {[%clk 0:02:25]}  Ne6 {[%clk 0:02:11]} 17. Ne2 {[%clk 0:02:25]}  Bc5 {[%clk 0:02:11]} 18. h4 {[%clk 0:02:06]}  Nd4 {[%clk 0:02:04]} 19. Bxd4 {[%clk 0:01:52]}  Bxd4 {[%clk 0:02:05]} 20. Qb1 {[%clk 0:01:50]}  Bb6 {[%clk 0:01:52]} 21. Rd1 {[%clk 0:01:47]}  Nd7 {[%clk 0:01:52]} 22. Nc1 {[%clk 0:01:20]}  Nc5 {[%clk 0:01:50]} 23. Bg2 {[%clk 0:00:57]}  f5 {[%clk 0:01:21]} 24. exf5 {[%clk 0:00:57]}  Rxf5 {[%clk 0:01:22]} 25. Nb3 {[%clk 0:00:54]}  Ne6 {[%clk 0:00:46]} 26. Bh3 {[%clk 0:00:52]}  Rf3 {[%clk 0:00:39]} 27. Bxe6+ {[%clk 0:00:52]}  Qxe6 {[%clk 0:00:39]} 28. c5 {[%clk 0:00:52]}  Bc7 {[%clk 0:00:33]} 29. Re2 {[%clk 0:00:46]}  Rdf8 {[%clk 0:00:20]} 30. Nd4 {[%clk 0:00:46]}  Qg4 {[%clk 0:00:09]} 31. Nxf3 {[%clk 0:00:45]}  Rxf3 {[%clk 0:00:10]} 32. Qxb7 {[%clk 0:00:17]}  Bd8 {[%clk 0:00:09]} 33. Qxc6 {[%clk 0:00:15]}  h6 {[%clk 0:00:07]} 34. Qd5+ {[%clk 0:00:14]}  Kh7 {[%clk 0:00:06]} 35. Qxd8 {[%clk 0:00:15]}  Rxg3+ {[%clk 0:00:05]} 36. fxg3 {[%clk 0:00:15]}  Qxe2 {[%clk 0:00:06]} 37. Rf1 {[%clk 0:00:14]}  Qe3+ {[%clk 0:00:06]} 38. Kg2 {[%clk 0:00:15]}  Qe2+ {[%clk 0:00:04]} 39. Rf2 {[%clk 0:00:15]} 1-0


[Site "https://www.chess.com"]